Department,Entity,Date of Payment,Expense Type,Expense Area,Supplier,Transaction Number,Amount,Description,Supplier Postcode
"Department for Business, Innovation and Skills",UK Shared Business Services Ltd,01/03/2022,Computer Software Licences,ERP Support,Oracle Corporation UK Ltd,99323278,"111,661.67","BPO License Core Service Bundle, Image Capture Bundle and Grants Bundle - (June 2021-Nov 2021)",BH7 7DA
"Department for Business, Innovation and Skills",UK Shared Business Services Ltd,01/03/2022,Tax Advice,Corporate Finance,KPMG LLP,99323876,"1,200.00",Professional Services,WD17 1DE
"Department for Business, Innovation and Skills",UK Shared Business Services Ltd,01/03/2022,Tax Advice,Corporate Finance,KPMG LLP,99323881,"2,208.00",Professional Services,WD17 1DE
"Department for Business, Innovation and Skills",UK Shared Business Services Ltd,01/03/2022,T&S - Mileage,Production Services,Unspecified,99323961,103.50,Mileage - Car (excl Home to Office),HOME
"Department for Business, Innovation and Skills",UK Shared Business Services Ltd,01/03/2022,Conferences & Seminars,Accounting,Unspecified,99323962,"3,000.00",Conference/Course Fees (Actuals),HOME
"Department for Business, Innovation and Skills",UK Shared Business Services Ltd,01/03/2022,UK - Professional Memberships & Subscriptions,Accounting,Unspecified,99323964,116.00,Professional Subscriptions (Actuals),HOME
"Department for Business, Innovation and Skills",UK Shared Business Services Ltd,01/03/2022,T&S - Parking Tolls Congestion Charges,Service Improvement and Assurance,Unspecified,99323965,10.00,"Parking, Tolls, Congestion Charge",HOME
"Department for Business, Innovation and Skills",UK Shared Business Services Ltd,02/03/2022,Computer Software,Production Services,IB Boost Ltd,99102281,"7,238.95",Computing Software,EC2A 4NE
"Department for Business, Innovation and Skills",UK Shared Business Services Ltd,02/03/2022,Telecoms - Maintenance & Repairs,Production Services,SCB Global Ltd,99271600,"1,228.56",Telephony,E14 5AA
"Department for Business, Innovation and Skills",UK Shared Business Services Ltd,02/03/2022,Data Storage & Recovery,Accounting,Restore plc,99274491,910.80,Computing Services,RH1 5DY
"Department for Business, Innovation and Skills",UK Shared Business Services Ltd,02/03/2022,Contract Staff,New System Evaluation,Robert Half Ltd,99324090,"3,480.00",Recruitment Services,B37 7GN
"Department for Business, Innovation and Skills",UK Shared Business Services Ltd,02/03/2022,T&S - Other Charges,Corporate HR,Unspecified,99324131,"1,124.45",Miscellaneous (Actuals),HOME
"Department for Business, Innovation and Skills",UK Shared Business Services Ltd,02/03/2022,IT Cloud Services,Production Services,FlyForm Ltd,99324877,"4,999.20",Computing Software,CF10 3AG
"Department for Business, Innovation and Skills",UK Shared Business Services Ltd,03/03/2022,Marketing & PR,Communications,Dsquared Ltd,99305862,"6,054.00",Marketing & Design,PE9 2YB
"Department for Business, Innovation and Skills",UK Shared Business Services Ltd,03/03/2022,T&S - Mileage,Central Services Management,Unspecified,99324124,27.90,Mileage - Car (excl Home to Office),HOME
"Department for Business, Innovation and Skills",UK Shared Business Services Ltd,03/03/2022,T&S - Subsistence,Central Services Management,Unspecified,99324124,25.15,Evening Meal (Actuals),HOME
"Department for Business, Innovation and Skills",UK Shared Business Services Ltd,03/03/2022,Corporate Events,Project Office,Amanda J Green Ltd,99325775,"2,347.20",Conference & Venues,WC1N 3AX
"Department for Business, Innovation and Skills",UK Shared Business Services Ltd,03/03/2022,Staff Training,Project Office,Amanda J Green Ltd,99325776,"1,590.00",Training,WC1N 3AX
"Department for Business, Innovation and Skills",UK Shared Business Services Ltd,03/03/2022,Contract Staff,Production Services,People Source Consulting Ltd,99325860,"12,480.00",Recruitment Services,BS1 6BA
"Department for Business, Innovation and Skills",UK Shared Business Services Ltd,03/03/2022,Staff Training,HRSD Recoverables,Provek Ltd,99325877,"1,620.00",Training,RG19 4LW
"Department for Business, Innovation and Skills",UK Shared Business Services Ltd,03/03/2022,Staff Training,HRSD Recoverables,Feldman Ltd T/A Brian Feldman and Associates,99326086,720.00,Training,SW15 5RH
"Department for Business, Innovation and Skills",UK Shared Business Services Ltd,03/03/2022,Staff Training,HRSD Recoverables,Feldman Ltd T/A Brian Feldman and Associates,99326087,720.00,Training,SW15 5RH
"Department for Business, Innovation and Skills",UK Shared Business Services Ltd,03/03/2022,Staff Training,HRSD Recoverables,ASK Europe PLC,99326636,"1,560.00",Training,MK43 0BT
"Department for Business, Innovation and Skills",UK Shared Business Services Ltd,03/03/2022,Staff Training,HRSD Recoverables,ASK Europe PLC,99326638,780.00,Training,MK43 0BT
"Department for Business, Innovation and Skills",UK Shared Business Services Ltd,03/03/2022,Staff Training,HRSD Recoverables,ASK Europe PLC,99326642,780.00,Training,MK43 0BT
"Department for Business, Innovation and Skills",UK Shared Business Services Ltd,03/03/2022,Staff Training,HRSD Recoverables,ASK Europe PLC,99326643,780.00,Training,MK43 0BT
"Department for Business, Innovation and Skills",UK Shared Business Services Ltd,04/03/2022,Telecoms - Non Capital Hardware Costs,Production Services,Telefonica UK Ltd (O2),98986506,366.00,Telephony,SMARTFORM
"Department for Business, Innovation and Skills",UK Shared Business Services Ltd,04/03/2022,Telecoms - Non Capital Hardware Costs,Production Services,Telefonica UK Ltd (O2),98986506,44.40,Telephony,SMARTFORM
"Department for Business, Innovation and Skills",UK Shared Business Services Ltd,04/03/2022,Telecoms - Non Capital Hardware Costs,Production Services,Telefonica UK Ltd (O2),98986522,366.00,Telephony,SMARTFORM
"Department for Business, Innovation and Skills",UK Shared Business Services Ltd,04/03/2022,Telecoms - Non Capital Hardware Costs,Production Services,Telefonica UK Ltd (O2),98986522,44.40,Telephony,SMARTFORM
"Department for Business, Innovation and Skills",UK Shared Business Services Ltd,04/03/2022,Telecoms - Non Capital Hardware Costs,Production Services,Telefonica UK Ltd (O2),99004569,37.20,Telephony,SMARTFORM
"Department for Business, Innovation and Skills",UK Shared Business Services Ltd,04/03/2022,Telecoms - Non Capital Hardware Costs,Production Services,Telefonica UK Ltd (O2),99004574,37.20,Telephony,SMARTFORM
"Department for Business, Innovation and Skills",UK Shared Business Services Ltd,04/03/2022,Telecoms - Non Capital Hardware Costs,Production Services,Telefonica UK Ltd (O2),99004592,37.20,Telephony,SMARTFORM
"Department for Business, Innovation and Skills",UK Shared Business Services Ltd,04/03/2022,Telecoms - Non Capital Hardware Costs,Production Services,Telefonica UK Ltd (O2),99004609,37.20,Telephony,SMARTFORM
"Department for Business, Innovation and Skills",UK Shared Business Services Ltd,04/03/2022,Telecoms - Non Capital Hardware Costs,Production Services,Telefonica UK Ltd (O2),99226623,"51,720.00",Telephony,SMARTFORM
"Department for Business, Innovation and Skills",UK Shared Business Services Ltd,04/03/2022,Telecoms - Non Capital Hardware Costs,Production Services,Telefonica UK Ltd (O2),99226623,"191,700.00",Telephony,SMARTFORM
"Department for Business, Innovation and Skills",UK Shared Business Services Ltd,04/03/2022,Computing Consumables,Production Services,Probrand Ltd,99323689,"4,880.40",Computer Consumables,SMARTFORM
"Department for Business, Innovation and Skills",UK Shared Business Services Ltd,04/03/2022,Consultancy Services,Systems Developments,Bytes Software Services Ltd,99325790,"10,080.00",Computer Consumables,KT22 7TW
"Department for Business, Innovation and Skills",UK Shared Business Services Ltd,04/03/2022,Staff Training,Executive Function,Perigean Ltd,99325835,"29,899.80",Training,YO60 6QR
"Department for Business, Innovation and Skills",UK Shared Business Services Ltd,04/03/2022,Computing Consumables,Production Services,Pure Data Solutions Ltd,99325977,6.00,Computer Consumables,LS28 5QS
"Department for Business, Innovation and Skills",UK Shared Business Services Ltd,04/03/2022,Computing Consumables,Production Services,Pure Data Solutions Ltd,99325977,214.20,Computer Consumables,LS28 5QS
"Department for Business, Innovation and Skills",UK Shared Business Services Ltd,04/03/2022,Staff Training,HRSD Recoverables,Feldman Ltd T/A Brian Feldman and Associates,99326088,"1,200.00",Training,SW15 5RH
"Department for Business, Innovation and Skills",UK Shared Business Services Ltd,04/03/2022,Staff Training,HRSD Recoverables,ASK Europe PLC,99326640,780.00,Training,MK43 0BT
"Department for Business, Innovation and Skills",UK Shared Business Services Ltd,04/03/2022,Computer Software Licences,Production Services,Chess Cybersecurity Ltd,99327484,"8,888.40",Computer Consumables,IP31 2QR
"Department for Business, Innovation and Skills",UK Shared Business Services Ltd,04/03/2022,Corporate Events,Production Services,Stonegate Pub Company Ltd T/A Goddard Arms,99330367,391.69,Conference & Venues,SN1 3EG
"Department for Business, Innovation and Skills",UK Shared Business Services Ltd,04/03/2022,Computer Software Licences,Production Services,Softcat plc,99330737,"1,077.30",Computing Software,SL7 1LW
"Department for Business, Innovation and Skills",UK Shared Business Services Ltd,07/03/2022,Computing Consumables,Production Services,Unspecified,99324125,160.74,GPC_Computer Consumables,HOME
"Department for Business, Innovation and Skills",UK Shared Business Services Ltd,07/03/2022,GPC Clearing - SSC,Balance Sheet,Unspecified,99324125,-160.74,Unspecified,HOME
"Department for Business, Innovation and Skills",UK Shared Business Services Ltd,07/03/2022,Computing Consumables,Production Services,Unspecified,99324126,48.66,GPC_Computer Consumables,HOME
"Department for Business, Innovation and Skills",UK Shared Business Services Ltd,07/03/2022,GPC Clearing - SSC,Balance Sheet,Unspecified,99324126,-48.66,Unspecified,HOME
"Department for Business, Innovation and Skills",UK Shared Business Services Ltd,07/03/2022,Consultancy Services,Production Services,Unspecified,99324127,61.53,GPC_Professional Services,HOME
"Department for Business, Innovation and Skills",UK Shared Business Services Ltd,07/03/2022,GPC Clearing - SSC,Balance Sheet,Unspecified,99324127,-61.53,Unspecified,HOME
"Department for Business, Innovation and Skills",UK Shared Business Services Ltd,07/03/2022,Computing Consumables,Production Services,Unspecified,99324128,84.58,GPC_Computer Consumables,HOME
"Department for Business, Innovation and Skills",UK Shared Business Services Ltd,07/03/2022,GPC Clearing - SSC,Balance Sheet,Unspecified,99324128,-84.58,Unspecified,HOME
"Department for Business, Innovation and Skills",UK Shared Business Services Ltd,07/03/2022,Computing Consumables,Production Services,Unspecified,99324129,99.53,GPC_Computer Consumables,HOME
"Department for Business, Innovation and Skills",UK Shared Business Services Ltd,07/03/2022,GPC Clearing - SSC,Balance Sheet,Unspecified,99324129,-99.53,Unspecified,HOME
"Department for Business, Innovation and Skills",UK Shared Business Services Ltd,07/03/2022,GPC Clearing - SSC,Balance Sheet,Unspecified,99324130,-99.99,Unspecified,HOME
"Department for Business, Innovation and Skills",UK Shared Business Services Ltd,07/03/2022,Purchase of non capital equipment,Corporate HR,Unspecified,99324130,99.99,GPC_Office Equipment (non capital),HOME
"Department for Business, Innovation and Skills",UK Shared Business Services Ltd,07/03/2022,Postage & Courier Services,Communications,KJS Print to Mail Services Ltd,99331154,"5,507.52",Shipping Postal & Courier Serv,PE1 5L
"Department for Business, Innovation and Skills",UK Shared Business Services Ltd,07/03/2022,Staff Training,HRSD Recoverables,Feldman Ltd T/A Brian Feldman and Associates,99331793,720.00,Training,SW15 5RH
"Department for Business, Innovation and Skills",UK Shared Business Services Ltd,07/03/2022,GPC Clearing - SSC,Balance Sheet,Unspecified,99332536,-36.75,Unspecified,HOME
"Department for Business, Innovation and Skills",UK Shared Business Services Ltd,07/03/2022,GPC Sundry Expenditure,Production Services,Unspecified,99332536,36.75,GPC_Miscellaneous GPC Expenditure,HOME
"Department for Business, Innovation and Skills",UK Shared Business Services Ltd,07/03/2022,Computing Consumables,Production Services,Unspecified,99332537,59.76,GPC_Computer Consumables,HOME
"Department for Business, Innovation and Skills",UK Shared Business Services Ltd,07/03/2022,GPC Clearing - SSC,Balance Sheet,Unspecified,99332537,-59.76,Unspecified,HOME
"Department for Business, Innovation and Skills",UK Shared Business Services Ltd,07/03/2022,Consultancy Services,Production Services,Unspecified,99332538,747.86,GPC_Professional Services,HOME
"Department for Business, Innovation and Skills",UK Shared Business Services Ltd,07/03/2022,GPC Clearing - SSC,Balance Sheet,Unspecified,99332538,-747.86,Unspecified,HOME
"Department for Business, Innovation and Skills",UK Shared Business Services Ltd,08/03/2022,Recruitment Costs,Corporate HR,Onefix Recruitment Ltd,99320602,360.00,Recruitment Services,PO3 5EJ
"Department for Business, Innovation and Skills",UK Shared Business Services Ltd,08/03/2022,Recruitment Costs,Corporate HR,Onefix Recruitment Ltd,99321528,360.00,Recruitment Services,PO3 5EJ
"Department for Business, Innovation and Skills",UK Shared Business Services Ltd,08/03/2022,Recruitment Costs,Corporate HR,Onefix Recruitment Ltd,99321529,360.00,Recruitment Services,PO3 5EJ
"Department for Business, Innovation and Skills",UK Shared Business Services Ltd,08/03/2022,Recruitment Costs,Corporate HR,Onefix Recruitment Ltd,99321530,360.00,Recruitment Services,PO3 5EJ
"Department for Business, Innovation and Skills",UK Shared Business Services Ltd,08/03/2022,Printing & Stationery,Executive Function,Banner Group Ltd,99321953,60.72,Office Supplies,SWAREHOUSEONLY
"Department for Business, Innovation and Skills",UK Shared Business Services Ltd,08/03/2022,Recruitment Costs,Corporate HR,Agenda Resource Management Ltd,99322272,296.62,Professional Services,HU12 8YJ
"Department for Business, Innovation and Skills",UK Shared Business Services Ltd,08/03/2022,Consultancy Services,Production Services,Elysian IT Ltd,99327886,"5,850.00",Computer Consumables,RG23 8PE
"Department for Business, Innovation and Skills",UK Shared Business Services Ltd,08/03/2022,Telecoms - Non Capital Hardware Costs,Production Services,Probrand Ltd,99331464,"2,634.00",Telephony,SMARTFORM
"Department for Business, Innovation and Skills",UK Shared Business Services Ltd,08/03/2022,Computing Consumables,Production Services,Dell Corporation Ltd,99331728,"1,099.20",Computer Consumables,SWAREHOUSEONLY
"Department for Business, Innovation and Skills",UK Shared Business Services Ltd,08/03/2022,Computing Consumables,Production Services,Dell Corporation Ltd,99331728,721.20,Computer Consumables,SWAREHOUSEONLY
"Department for Business, Innovation and Skills",UK Shared Business Services Ltd,08/03/2022,Computing Consumables,Production Services,Dell Corporation Ltd,99331728,"10,022.40",Computer Consumables,SWAREHOUSEONLY
"Department for Business, Innovation and Skills",UK Shared Business Services Ltd,08/03/2022,Staff Training,HRSD Recoverables,Feldman Ltd T/A Brian Feldman and Associates,99331794,720.00,Training,SW15 5RH
"Department for Business, Innovation and Skills",UK Shared Business Services Ltd,08/03/2022,Legal & Professional Services,SHARP,DAC Beachcroft LLP,99332060,"6,419.04",Professional Services,EC4A 1BN
"Department for Business, Innovation and Skills",UK Shared Business Services Ltd,08/03/2022,Staff Training,HRSD Recoverables,ASK Europe PLC,99332061,468.00,Training,MK43 0BT
"Department for Business, Innovation and Skills",UK Shared Business Services Ltd,08/03/2022,Staff Training,HRSD Recoverables,ASK Europe PLC,99332267,468.00,Training,MK43 0BT
"Department for Business, Innovation and Skills",UK Shared Business Services Ltd,08/03/2022,Contract Staff,Corporate HR,Alexander Mann Solutions Ltd,99332617,"11,544.66",Recruitment Services,EC2N 3AQ
"Department for Business, Innovation and Skills",UK Shared Business Services Ltd,08/03/2022,Recruitment Costs,Production Services,Alexander Mann Solutions Ltd,99332618,"7,391.16",Recruitment Services,EC2N 3AQ
"Department for Business, Innovation and Skills",UK Shared Business Services Ltd,08/03/2022,Contract Staff,Project Office,Alexander Mann Solutions Ltd,99332620,"2,249.75",Recruitment Services,EC2N 3AQ
"Department for Business, Innovation and Skills",UK Shared Business Services Ltd,08/03/2022,Contract Staff,Project Office,Alexander Mann Solutions Ltd,99332621,"3,649.14",Recruitment Services,EC2N 3AQ
"Department for Business, Innovation and Skills",UK Shared Business Services Ltd,08/03/2022,Contract Staff,Production Services,Alexander Mann Solutions Ltd,99332623,"2,648.52",Recruitment Services,EC2N 3AQ
"Department for Business, Innovation and Skills",UK Shared Business Services Ltd,08/03/2022,Contract Staff,Corporate HR,Alexander Mann Solutions Ltd,99332624,"10,615.68",Recruitment Services,EC2N 3AQ
"Department for Business, Innovation and Skills",UK Shared Business Services Ltd,08/03/2022,Contract Staff,Production Services,Alexander Mann Solutions Ltd,99332627,"3,018.06",Recruitment Services,EC2N 3AQ
"Department for Business, Innovation and Skills",UK Shared Business Services Ltd,08/03/2022,Staff Training,HRSD Recoverables,ASK Europe PLC,99332667,780.00,Training,MK43 0BT
"Department for Business, Innovation and Skills",UK Shared Business Services Ltd,08/03/2022,Staff Training,HRSD Recoverables,ASK Europe PLC,99332686,780.00,Training,MK43 0BT
"Department for Business, Innovation and Skills",UK Shared Business Services Ltd,08/03/2022,UK - Professional Memberships & Subscriptions,Production Services,Unspecified,99334305,93.53,Professional Subscriptions (Actuals),HOME
"Department for Business, Innovation and Skills",UK Shared Business Services Ltd,08/03/2022,Staff Training,HRSD Recoverables,The Retirement Counselling Service Ltd,99334481,"1,320.00",Training,HP6 6JQ
"Department for Business, Innovation and Skills",UK Shared Business Services Ltd,09/03/2022,T&S - Other Charges,Production Services,Unspecified,99320394,164.95,Home-working Equipment,HOME
"Department for Business, Innovation and Skills",UK Shared Business Services Ltd,09/03/2022,Computer Software,Production Services,Softcat plc,99320550,"3,341.70",Computing Software,SL7 1LW
"Department for Business, Innovation and Skills",UK Shared Business Services Ltd,09/03/2022,Consultancy Services,Production Services,SureCloud Ltd,99332357,"2,880.00",Computer Consumables,RG1 1NU
"Department for Business, Innovation and Skills",UK Shared Business Services Ltd,09/03/2022,Computer Software Licences,Production Services,Groupe Sharegate Inc.,99333972,"3,398.25",Computing Software,H3K 1G6 -USD
"Department for Business, Innovation and Skills",UK Shared Business Services Ltd,09/03/2022,Purchase of non capital equipment,Production Services,Premier Farnell UK Ltd T/A Farnell Onecall,99334789,777.00,Specialist Engineering,SWAREHOUSEONLY
"Department for Business, Innovation and Skills",UK Shared Business Services Ltd,09/03/2022,Data Storage & Recovery,Accounting,Restore plc,99334846,910.80,Computing Services,RH1 5DY
"Department for Business, Innovation and Skills",UK Shared Business Services Ltd,09/03/2022,Computer Software Licences,ERP Support,Oracle Corporation UK Ltd,99334913,0.01,4080023756 OVERBILL,BH7 7DA
"Department for Business, Innovation and Skills",UK Shared Business Services Ltd,09/03/2022,Computer Software Licences,ERP Support,Oracle Corporation UK Ltd,99334913,"147,897.01",Software as a Service subscription - Dec 21 - Feb 22,BH7 7DA
"Department for Business, Innovation and Skills",UK Shared Business Services Ltd,09/03/2022,Staff Training,HRSD Recoverables,ASK Europe PLC,99336142,780.00,Training,MK43 0BT
"Department for Business, Innovation and Skills",UK Shared Business Services Ltd,09/03/2022,Computer Hardware,Production Services,Dell Corporation Ltd,99336262,299.41,Computing Hardware,SWAREHOUSEONLY
"Department for Business, Innovation and Skills",UK Shared Business Services Ltd,09/03/2022,Health & Safety (inc. Medicals & Opticians),Accounting,Unspecified,99336311,80.00,Medical Fees & Vaccinations (Actuals),HOME
"Department for Business, Innovation and Skills",UK Shared Business Services Ltd,09/03/2022,T&S - Mileage,Production Services,Unspecified,99336312,32.40,Mileage - Car (excl Home to Office),HOME
"Department for Business, Innovation and Skills",UK Shared Business Services Ltd,10/03/2022,Hardware/Software Maintenance,Production Services,Chess Cybersecurity Ltd,99336418,"24,319.20",Computer Consumables,IP31 2QR
"Department for Business, Innovation and Skills",UK Shared Business Services Ltd,10/03/2022,Contract Staff,Production Services,Proventeq Limited,99337489,"71,778.75",Recruitment Services,RG6 6BU
"Department for Business, Innovation and Skills",UK Shared Business Services Ltd,11/03/2022,T&S - Other Charges,Production Services,Unspecified,99318992,200.00,Home-working Equipment,HOME
"Department for Business, Innovation and Skills",UK Shared Business Services Ltd,11/03/2022,Other Staff Benefits,Corporate HR,EDENRED (UK GROUP) LTD,99333939,"1,847.12",Professional Services,SW1V 2RS
"Department for Business, Innovation and Skills",UK Shared Business Services Ltd,11/03/2022,Recruitment Costs,Corporate HR,Agenda Resource Management Ltd,99338512,338.31,Professional Services,HU12 8YJ
"Department for Business, Innovation and Skills",UK Shared Business Services Ltd,11/03/2022,Computer Software Licences,Production Services,Phoenix Software Ltd,99339224,"2,310.00",Computing Software,YO42 1NS
"Department for Business, Innovation and Skills",UK Shared Business Services Ltd,11/03/2022,Staff Training,HRSD Recoverables,ASK Europe PLC,99339336,468.00,Training,MK43 0BT
"Department for Business, Innovation and Skills",UK Shared Business Services Ltd,11/03/2022,Health & Safety (inc. Medicals & Opticians),Production Services,Unspecified,99339350,25.00,Medical Fees & Vaccinations (Actuals),HOME
"Department for Business, Innovation and Skills",UK Shared Business Services Ltd,11/03/2022,Hardware/Software Maintenance,Production Services,Chess Cybersecurity Ltd,99339937,"13,684.80",Computer Consumables,IP31 2QR
"Department for Business, Innovation and Skills",UK Shared Business Services Ltd,11/03/2022,Hardware/Software Maintenance,Production Services,Chess Cybersecurity Ltd,99339937,"6,325.20",Computer Consumables,IP31 2QR
"Department for Business, Innovation and Skills",UK Shared Business Services Ltd,11/03/2022,Staff Training,HRSD Recoverables,ASK Europe PLC,99340100,468.00,Training,MK43 0BT
"Department for Business, Innovation and Skills",UK Shared Business Services Ltd,11/03/2022,Staff Training,HRSD Recoverables,ASK Europe PLC,99340103,780.00,Training,MK43 0BT
"Department for Business, Innovation and Skills",UK Shared Business Services Ltd,11/03/2022,Staff Training,HRSD Recoverables,ASK Europe PLC,99340106,780.00,Training,MK43 0BT
"Department for Business, Innovation and Skills",UK Shared Business Services Ltd,14/03/2022,Staff Training,HRSD Recoverables,ASK Europe PLC,99283436,156.00,Training,MK43 0BT
"Department for Business, Innovation and Skills",UK Shared Business Services Ltd,14/03/2022,Staff Training,HRSD Recoverables,ASK Europe PLC,99283436,780.00,Training,MK43 0BT
"Department for Business, Innovation and Skills",UK Shared Business Services Ltd,14/03/2022,PAYE Payable Salaries,Balance Sheet,HM Revenue & Customs,99330546,"191,741.44",HMRC monthly deductions for SSC February 2022,3RD PARTY PAYME
"Department for Business, Innovation and Skills",UK Shared Business Services Ltd,14/03/2022,NI Payable Salaries,Balance Sheet,HM Revenue & Customs,99330547,"279,779.56",HMRC monthly deductions for SSC February 2022,3RD PARTY PAYME
"Department for Business, Innovation and Skills",UK Shared Business Services Ltd,14/03/2022,Student Loans,Balance Sheet,HM Revenue & Customs,99330548,"2,635.00",HMRC monthly deductions for SSC February 2022,3RD PARTY PAYME
"Department for Business, Innovation and Skills",UK Shared Business Services Ltd,14/03/2022,Apprenticeship Levy,Corporate HR,HM Revenue & Customs,99330549,"6,862.00",HMRC monthly deductions for SSC February 2022,3RD PARTY PAYME
"Department for Business, Innovation and Skills",UK Shared Business Services Ltd,14/03/2022,Consultancy Services,Production Services,Unspecified,99336310,595.71,GPC_Professional Services,HOME
"Department for Business, Innovation and Skills",UK Shared Business Services Ltd,14/03/2022,GPC Clearing - SSC,Balance Sheet,Unspecified,99336310,-595.71,Unspecified,HOME
"Department for Business, Innovation and Skills",UK Shared Business Services Ltd,14/03/2022,NI Payable Salaries,Balance Sheet,HM Revenue & Customs,99336456,"1,715.06",HMRC 948PT001984532113,3RD PARTY PAYME
"Department for Business, Innovation and Skills",UK Shared Business Services Ltd,14/03/2022,NI Payable Salaries,Balance Sheet,HM Revenue & Customs,99336457,"1,300.69",HMRC 948PT001984532013,3RD PARTY PAYME
"Department for Business, Innovation and Skills",UK Shared Business Services Ltd,14/03/2022,Computer Software Licences,Production Services,Phoenix Software Ltd,99340446,138.00,Computing Software,YO42 1NS
"Department for Business, Innovation and Skills",UK Shared Business Services Ltd,14/03/2022,Computer Software Licences,Production Services,Phoenix Software Ltd,99340446,138.00,Computing Software,YO42 1NS
"Department for Business, Innovation and Skills",UK Shared Business Services Ltd,14/03/2022,Computer Software Licences,Production Services,Phoenix Software Ltd,99340446,111.00,Computing Software,YO42 1NS
"Department for Business, Innovation and Skills",UK Shared Business Services Ltd,14/03/2022,Computer Software Licences,Production Services,Phoenix Software Ltd,99340446,138.00,Computing Software,YO42 1NS
"Department for Business, Innovation and Skills",UK Shared Business Services Ltd,14/03/2022,Contract Staff,Corporate Commercial,Alexander Mann Solutions Ltd,99340487,"5,042.50",Recruitment Services,EC2N 3AQ
"Department for Business, Innovation and Skills",UK Shared Business Services Ltd,14/03/2022,Contract Staff,Production Services,Alexander Mann Solutions Ltd,99340490,"6,159.24",Recruitment Services,EC2N 3AQ
"Department for Business, Innovation and Skills",UK Shared Business Services Ltd,14/03/2022,Contract Staff,Production Services,Alexander Mann Solutions Ltd,99340501,"2,648.52",Recruitment Services,EC2N 3AQ
"Department for Business, Innovation and Skills",UK Shared Business Services Ltd,14/03/2022,Contract Staff,Project Office,Alexander Mann Solutions Ltd,99340687,"3,649.14",Recruitment Services,EC2N 3AQ
"Department for Business, Innovation and Skills",UK Shared Business Services Ltd,14/03/2022,GPC Clearing - SSC,Balance Sheet,Unspecified,99340924,-597.00,Unspecified,HOME
"Department for Business, Innovation and Skills",UK Shared Business Services Ltd,14/03/2022,GPC Sundry Expenditure,HRSD Recoverables,Unspecified,99340924,597.00,GPC_Miscellaneous GPC Expenditure,HOME
"Department for Business, Innovation and Skills",UK Shared Business Services Ltd,14/03/2022,Health & Safety (inc. Medicals & Opticians),Production Services,Unspecified,99340925,25.00,Medical Fees & Vaccinations (Actuals),HOME
"Department for Business, Innovation and Skills",UK Shared Business Services Ltd,14/03/2022,Maintenance of Research & Scientific Equipment,Corporate HR,Sutton Upholsterers Ltd T/A Suttons,99341517,162.60,Equipment Maintenance,TA10 9AA
"Department for Business, Innovation and Skills",UK Shared Business Services Ltd,15/03/2022,Computer Hardware,Production Services,UKRI - Engineering & Physical Sciences Research Council,98682090,38.10,Computer Consumables,INTERCO
"Department for Business, Innovation and Skills",UK Shared Business Services Ltd,15/03/2022,Computing Consumables,General Capital,Pure Data Solutions Ltd,99322444,"4,011.84",Computer Consumables,LS28 5QS
"Department for Business, Innovation and Skills",UK Shared Business Services Ltd,15/03/2022,Computing Consumables,General Capital,Pure Data Solutions Ltd,99323138,6.00,Computer Consumables,LS28 5QS
"Department for Business, Innovation and Skills",UK Shared Business Services Ltd,15/03/2022,Voluntary Deductions,Balance Sheet,Civil Service Benevolent Fund,99330550,18.00,SSC THIRD PARTY PAYMENTS February2022,SM3 8DY
"Department for Business, Innovation and Skills",UK Shared Business Services Ltd,15/03/2022,Union Deductions,Balance Sheet,PCS Union,99330551,989.43,SSC THIRD PARTY PAYMENTS February2022,SW11 2LN
"Department for Business, Innovation and Skills",UK Shared Business Services Ltd,15/03/2022,Voluntary Deductions,Balance Sheet,Swindon Office Sports and Social Club,99330552,184.00,SSC THIRD PARTY PAYMENTS February2022,SN2 1EU
"Department for Business, Innovation and Skills",UK Shared Business Services Ltd,15/03/2022,Ees Pension Deductions - JSS,Balance Sheet,RCPS Pension,99330553,"164,721.70",RCPS monthly contributions for SSC February2022,SN2 1UY.
"Department for Business, Innovation and Skills",UK Shared Business Services Ltd,15/03/2022,Ers Pension Deductions - JSS,Balance Sheet,RCPS Pension,99330554,"744,692.52",RCPS monthly contributions for SSC February2022,SN2 1UY.
"Department for Business, Innovation and Skills",UK Shared Business Services Ltd,15/03/2022,Other Pension Deductions,Balance Sheet,Scottish Widows,99330555,100.00,SSC THIRD PARTY PAYMENTS February2022,EH16 5BU
"Department for Business, Innovation and Skills",UK Shared Business Services Ltd,15/03/2022,Partnership Pension Deductions,Balance Sheet,Scottish Widows,99330556,"3,679.58",SSC THIRD PARTY PAYMENTS February2022,EH16 5BU
"Department for Business, Innovation and Skills",UK Shared Business Services Ltd,15/03/2022,Partnership Pension Deductions,Balance Sheet,Standard Life Assurance Ltd,99330557,227.14,SSC THIRD PARTY PAYMENTS February2022,EH1 2DH
"Department for Business, Innovation and Skills",UK Shared Business Services Ltd,15/03/2022,Other Pension Deductions,Balance Sheet,Equiniti Ltd,99330558,396.11,SSC THIRD PARTY PAYMENTS February2022,BN99 9AP
"Department for Business, Innovation and Skills",UK Shared Business Services Ltd,15/03/2022,Partnership Pension Deductions,Balance Sheet,Prudential Plc,99330559,400.96,SSC THIRD PARTY PAYMENTS February2022,EC4R 0HH
"Department for Business, Innovation and Skills",UK Shared Business Services Ltd,15/03/2022,Ees Pension Deductions - MRC,Balance Sheet,JLT Pensions Administration Ltd T/A JLT Employee Benefits,99330560,"4,542.43",SSC THIRD PARTY PAYMENTS February2022,PRINCIPAL SECTI
"Department for Business, Innovation and Skills",UK Shared Business Services Ltd,15/03/2022,Ers Pension Deductions - MRC,Balance Sheet,JLT Pensions Administration Ltd T/A JLT Employee Benefits,99330561,"12,012.95",SSC THIRD PARTY PAYMENTS February2022,PRINCIPAL SECTI
"Department for Business, Innovation and Skills",UK Shared Business Services Ltd,15/03/2022,Voluntary Deductions,Balance Sheet,BHCA (Services) Ltd,99330562,59.15,SSC THIRD PARTY PAYMENTS February2022,NN14 1UE
"Department for Business, Innovation and Skills",UK Shared Business Services Ltd,15/03/2022,Ees Pension Deductions - MyCSP,Balance Sheet,Cabinet Office RM Shared Services,99330563,145.36,UKSBS THIRD PARTY PAYMENTS February 2022,FY5 3TA
"Department for Business, Innovation and Skills",UK Shared Business Services Ltd,15/03/2022,Ers Pension Deductions - MyCSP,Balance Sheet,Cabinet Office RM Shared Services,99330564,722.78,UKSBS THIRD PARTY PAYMENTS February 2022,FY5 3TA
"Department for Business, Innovation and Skills",UK Shared Business Services Ltd,15/03/2022,Consultancy Services,Interfaces & API Mgmt,Software AG (UK) Ltd,99332263,"15,119.24",Computer Consumables,DE24 8BY
"Department for Business, Innovation and Skills",UK Shared Business Services Ltd,15/03/2022,Nursery Deductions,Balance Sheet,EDENRED (UK GROUP) LTD,99340213,"1,618.50",SR 11001700 MARCH VOUCHERS MARCH 2022,SW1V 2RS
"Department for Business, Innovation and Skills",UK Shared Business Services Ltd,15/03/2022,Contract Staff,Corporate HR,Alexander Mann Solutions Ltd,99340484,"3,848.22",Recruitment Services,EC2N 3AQ
"Department for Business, Innovation and Skills",UK Shared Business Services Ltd,15/03/2022,Staff Training,HRSD Recoverables,Feldman Ltd T/A Brian Feldman and Associates,99340926,720.00,Training,SW15 5RH
"Department for Business, Innovation and Skills",UK Shared Business Services Ltd,15/03/2022,Telecoms - Land Line Rental,Production Services,British Telecom Plc (BT),99341008,"12,593.29",SR11002412 CHARGES FOR ACCOUNT VP 6160 6770 1 MARCH 22 - 31 MARCH 22,S98 1BT
"Department for Business, Innovation and Skills",UK Shared Business Services Ltd,15/03/2022,Staff Training,HRSD Recoverables,ASK Europe PLC,99341119,780.00,Training,MK43 0BT
"Department for Business, Innovation and Skills",UK Shared Business Services Ltd,15/03/2022,Health & Safety (inc. Medicals & Opticians),DDaT,Unspecified,99341252,80.00,Medical Fees & Vaccinations (Actuals),HOME
"Department for Business, Innovation and Skills",UK Shared Business Services Ltd,15/03/2022,Computer Software Licences,Corporate HR,Sponge UK Ltd,99341815,"4,400.40",Computing Software,PL6 8BT
"Department for Business, Innovation and Skills",UK Shared Business Services Ltd,16/03/2022,T&S - Subsistence,Contact Centres,Unspecified,99322338,24.50,Evening Meal (Actuals),HOME
"Department for Business, Innovation and Skills",UK Shared Business Services Ltd,16/03/2022,T&S - Public Transport,DDaT,Unspecified,99323963,70.55,Public Transport - Train (Actuals),HOME
"Department for Business, Innovation and Skills",UK Shared Business Services Ltd,16/03/2022,T&S - Subsistence,Contact Centres,Unspecified,99323966,10.27,Lunch (Actuals),HOME
"Department for Business, Innovation and Skills",UK Shared Business Services Ltd,16/03/2022,T&S - Mileage,Contact Centres,Unspecified,99323967,189.90,Mileage - Car (excl Home to Office),HOME
"Department for Business, Innovation and Skills",UK Shared Business Services Ltd,16/03/2022,T&S - Subsistence,Contact Centres,Unspecified,99323968,25.00,Evening Meal (Actuals),HOME
"Department for Business, Innovation and Skills",UK Shared Business Services Ltd,16/03/2022,T&S - Subsistence,Contact Centres,Unspecified,99323969,5.22,Breakfast (Actuals),HOME
"Department for Business, Innovation and Skills",UK Shared Business Services Ltd,16/03/2022,Computer Software Licences,Production Services,IB Boost Ltd,99332273,"3,855.63",Computing Software,EC2A 4NE
"Department for Business, Innovation and Skills",UK Shared Business Services Ltd,16/03/2022,Staff Training,Executive Function,Perigean Ltd,99332308,"29,899.80",Training,YO60 6QR
"Department for Business, Innovation and Skills",UK Shared Business Services Ltd,16/03/2022,Computer Software Licences,Production Services,GitHub Inc,99340262,"9,525.68",Computer Consumables,94107 - USD
"Department for Business, Innovation and Skills",UK Shared Business Services Ltd,16/03/2022,Computer Software Licences,Production Services,JetBrains SRO,99340339,716.00,Computing Software,140 00-GBP
"Department for Business, Innovation and Skills",UK Shared Business Services Ltd,16/03/2022,Contract Staff,Production Services,Alexander Mann Solutions Ltd,99340481,"3,018.06",Recruitment Services,EC2N 3AQ
"Department for Business, Innovation and Skills",UK Shared Business Services Ltd,16/03/2022,Printing & Stationery,Production Services,Konica Minolta Business Solutions (UK) Ltd,99342774,296.52,Computer Consumables,SS14 3AR
"Department for Business, Innovation and Skills",UK Shared Business Services Ltd,16/03/2022,T&S - Mileage,Accounting,Unspecified,99342874,56.70,Mileage - Car (excl Home to Office),HOME
"Department for Business, Innovation and Skills",UK Shared Business Services Ltd,16/03/2022,T&S - Parking Tolls Congestion Charges,Accounting,Unspecified,99342874,10.00,"Parking, Tolls, Congestion Charge",HOME
"Department for Business, Innovation and Skills",UK Shared Business Services Ltd,16/03/2022,T&S - Other Charges,"D&I Digital, Data & Analytics",Unspecified,99342875,25.00,Miscellaneous (Actuals),HOME
"Department for Business, Innovation and Skills",UK Shared Business Services Ltd,16/03/2022,T&S - Mileage,Operational Excellence,Unspecified,99342876,25.20,Mileage - Car (excl Home to Office),HOME
"Department for Business, Innovation and Skills",UK Shared Business Services Ltd,16/03/2022,T&S - Subsistence,Operational Excellence,Unspecified,99342876,11.95,Evening Meal (Actuals),HOME
"Department for Business, Innovation and Skills",UK Shared Business Services Ltd,16/03/2022,Health & Safety (inc. Medicals & Opticians),Production Services,Unspecified,99342877,25.00,Medical Fees & Vaccinations (Actuals),HOME
"Department for Business, Innovation and Skills",UK Shared Business Services Ltd,16/03/2022,Contract Staff,Production Services,Hays Specialist Recruitment Ltd,99343571,"6,495.12",Recruitment Services,KT3 4QF
"Department for Business, Innovation and Skills",UK Shared Business Services Ltd,16/03/2022,Contract Staff,Production Services,Hays Specialist Recruitment Ltd,99343574,"5,351.76",Recruitment Services,KT3 4QF
"Department for Business, Innovation and Skills",UK Shared Business Services Ltd,16/03/2022,Contract Staff,Production Services,Hays Specialist Recruitment Ltd,99343576,"6,495.12",Recruitment Services,KT3 4QF
"Department for Business, Innovation and Skills",UK Shared Business Services Ltd,16/03/2022,Contract Staff,Production Services,Hays Specialist Recruitment Ltd,99343585,"5,351.76",Recruitment Services,KT3 4QF
"Department for Business, Innovation and Skills",UK Shared Business Services Ltd,16/03/2022,Staff Training,HRSD Recoverables,Swindon and Gloucestershire Mind,99343590,840.00,Training,SN1 1HE
"Department for Business, Innovation and Skills",UK Shared Business Services Ltd,16/03/2022,Conferences & Seminars,Production Services,Melksham Town Football Club Ltd,99343604,414.80,Conference & Venues,SN12 7GU
"Department for Business, Innovation and Skills",UK Shared Business Services Ltd,16/03/2022,Conferences & Seminars,Production Services,Melksham Town Football Club Ltd,99343606,238.60,Conference & Venues,SN12 7GU
"Department for Business, Innovation and Skills",UK Shared Business Services Ltd,16/03/2022,Conferences & Seminars,Production Services,Melksham Town Football Club Ltd,99343607,378.00,Conference & Venues,SN12 7GU
"Department for Business, Innovation and Skills",UK Shared Business Services Ltd,17/03/2022,Photocopy Costs,Facilities,Canon (UK) Ltd,99070012,177.60,Reprographics,UB11 1ET
"Department for Business, Innovation and Skills",UK Shared Business Services Ltd,17/03/2022,Photocopy Costs,Facilities,Canon (UK) Ltd,99246419,90.24,Reprographics,UB11 1ET
"Department for Business, Innovation and Skills",UK Shared Business Services Ltd,17/03/2022,Photocopy Costs,Facilities,Canon (UK) Ltd,99258680,197.41,Reprographics,UB11 1ET
"Department for Business, Innovation and Skills",UK Shared Business Services Ltd,17/03/2022,IT Cloud Services,Production Services,MTI Technology Ltd,99322430,"25,200.00",Computer Consumables,GU7 1EY
"Department for Business, Innovation and Skills",UK Shared Business Services Ltd,17/03/2022,IT Cloud Services,Production Services,MTI Technology Ltd,99341158,"50,400.00",Computer Consumables,GU7 1EY
"Department for Business, Innovation and Skills",UK Shared Business Services Ltd,17/03/2022,UK - Professional Memberships & Subscriptions,Executive Function,Thomson Reuters (Professional) UK Limited,99343205,"6,592.92",Professional Memberships,E14 5AQ
"Department for Business, Innovation and Skills",UK Shared Business Services Ltd,17/03/2022,Computer Software Licences,ISS Recoverable Charges � UKRI,Ogel IT Ltd,99343215,"6,300.00",Computing Software,SG1 2FS
"Department for Business, Innovation and Skills",UK Shared Business Services Ltd,17/03/2022,T&S - Parking Tolls Congestion Charges,Operational Excellence,Unspecified,99343345,10.00,"Parking, Tolls, Congestion Charge",HOME
"Department for Business, Innovation and Skills",UK Shared Business Services Ltd,17/03/2022,Recruitment Costs,Corporate HR,Onefix Recruitment Ltd,99343979,55.50,Recruitment Services,PO3 5EJ
"Department for Business, Innovation and Skills",UK Shared Business Services Ltd,17/03/2022,Computer Software,Production Services,Avolution (UK) Ltd,99344051,"2,876.40",Computer Consumables,EC4A 2DQ
"Department for Business, Innovation and Skills",UK Shared Business Services Ltd,18/03/2022,Hardware/Software Maintenance,ISS Recoverable Charges � UKRI,Ogel IT Ltd,99163421,"8,896.02","Technical Assurance, Support & Escalation Service for Greenfield (UKRI) 01/04/21 - 31/03/21",SG1 2FS
"Department for Business, Innovation and Skills",UK Shared Business Services Ltd,18/03/2022,Hardware/Software Maintenance,ISS Recoverable Charges � UKRI,Ogel IT Ltd,99164420,"8,896.02","Technical Assurance, Support & Escalation Service for Greenfield (UKRI) 01/04/21 - 31/03/21",SG1 2FS
"Department for Business, Innovation and Skills",UK Shared Business Services Ltd,18/03/2022,Hardware/Software Maintenance,ISS Recoverable Charges � UKRI,Ogel IT Ltd,99274862,"8,896.02","Technical Assurance, Support & Escalation Service for Greenfield (UKRI) 01/04/21 - 31/03/21",SG1 2FS
"Department for Business, Innovation and Skills",UK Shared Business Services Ltd,18/03/2022,Staff Training,HRSD Recoverables,ASK Europe PLC,99287641,780.00,Training,MK43 0BT
"Department for Business, Innovation and Skills",UK Shared Business Services Ltd,18/03/2022,Staff Training,HRSD Recoverables,ASK Europe PLC,99287646,780.00,Training,MK43 0BT
"Department for Business, Innovation and Skills",UK Shared Business Services Ltd,18/03/2022,Marketing & PR,Communications,Dsquared Ltd,99339301,"3,078.24",Marketing & Design,PE9 2YB
"Department for Business, Innovation and Skills",UK Shared Business Services Ltd,18/03/2022,Computing Consumables,Production Services,AR Electrical (Swindon) Ltd,99343735,"5,078.40",Computer Consumables,SN3 6EY
"Department for Business, Innovation and Skills",UK Shared Business Services Ltd,18/03/2022,Hardware/Software Maintenance,ISS Recoverable Charges � UKRI,Ogel IT Ltd,99344059,"8,896.02","Technical Assurance, Support & Escalation Service for Greenfield (UKRI) 01/04/21 - 31/03/21",SG1 2FS
"Department for Business, Innovation and Skills",UK Shared Business Services Ltd,18/03/2022,Mobile Phone Costs,Production Services,Telefonica UK Ltd (O2),99344194,"2,073.56",SR11007974 LINE RENTAL CHARGE,SMARTFORM
"Department for Business, Innovation and Skills",UK Shared Business Services Ltd,18/03/2022,Staff Training,HRSD Recoverables,ASK Europe PLC,99344195,468.00,Training,MK43 0BT
"Department for Business, Innovation and Skills",UK Shared Business Services Ltd,18/03/2022,Staff Training,HRSD Recoverables,ASK Europe PLC,99344198,780.00,Training,MK43 0BT
"Department for Business, Innovation and Skills",UK Shared Business Services Ltd,18/03/2022,Health & Safety (inc. Medicals & Opticians),Corporate Finance,Unspecified,99344791,20.00,Medical Fees & Vaccinations (Actuals),HOME
"Department for Business, Innovation and Skills",UK Shared Business Services Ltd,18/03/2022,T&S - Parking Tolls Congestion Charges,Corporate Finance,Unspecified,99344791,10.00,"Parking, Tolls, Congestion Charge",HOME
"Department for Business, Innovation and Skills",UK Shared Business Services Ltd,18/03/2022,T&S - Subsistence,Resourcing,Unspecified,99344792,8.20,Lunch (Actuals),HOME
"Department for Business, Innovation and Skills",UK Shared Business Services Ltd,18/03/2022,T&S - Vehicle Hire,Resourcing,Unspecified,99344792,100.54,Vehicle Hire/Rental/Fuel (Actuals),HOME
"Department for Business, Innovation and Skills",UK Shared Business Services Ltd,18/03/2022,Conferences & Seminars,Corporate Finance,Unspecified,99344793,"3,000.00",Conference/Course Fees (Actuals),HOME
"Department for Business, Innovation and Skills",UK Shared Business Services Ltd,18/03/2022,UK - Professional Memberships & Subscriptions,Corporate Finance,Unspecified,99344794,206.00,Professional Subscriptions (Actuals),HOME
"Department for Business, Innovation and Skills",UK Shared Business Services Ltd,21/03/2022,Computer Software Licences,Production Services,Softcat plc,99342973,466.42,Computing Software,SL7 1LW
"Department for Business, Innovation and Skills",UK Shared Business Services Ltd,21/03/2022,Staff Training,HRSD Recoverables,ASK Europe PLC,99344898,936.00,Training,MK43 0BT
"Department for Business, Innovation and Skills",UK Shared Business Services Ltd,21/03/2022,Staff Training,HRSD Recoverables,ASK Europe PLC,99344912,780.00,Training,MK43 0BT
"Department for Business, Innovation and Skills",UK Shared Business Services Ltd,21/03/2022,Staff Training,HRSD Recoverables,ASK Europe PLC,99344918,780.00,Training,MK43 0BT
"Department for Business, Innovation and Skills",UK Shared Business Services Ltd,21/03/2022,Printing & Stationery,Finance Operations 1,Banner Group Ltd,99345042,13.32,Office Supplies,SWAREHOUSEONLY
"Department for Business, Innovation and Skills",UK Shared Business Services Ltd,21/03/2022,Printing & Stationery,Finance Operations 1,Banner Group Ltd,99345042,67.56,Office Supplies,SWAREHOUSEONLY
"Department for Business, Innovation and Skills",UK Shared Business Services Ltd,21/03/2022,Staff Training,HRSD Recoverables,ASK Europe PLC,99345049,780.00,Training,MK43 0BT
"Department for Business, Innovation and Skills",UK Shared Business Services Ltd,21/03/2022,Contract Staff,Production Services,Alexander Mann Solutions Ltd,99345234,"3,018.06",Recruitment Services,EC2N 3AQ
"Department for Business, Innovation and Skills",UK Shared Business Services Ltd,21/03/2022,Contract Staff,Project Office,Alexander Mann Solutions Ltd,99345247,"3,649.14",Recruitment Services,EC2N 3AQ
"Department for Business, Innovation and Skills",UK Shared Business Services Ltd,21/03/2022,Recruitment Costs,Production Services,Alexander Mann Solutions Ltd,99345251,"2,463.72",Recruitment Services,EC2N 3AQ
"Department for Business, Innovation and Skills",UK Shared Business Services Ltd,21/03/2022,Contract Staff,Production Services,Alexander Mann Solutions Ltd,99345314,"2,648.52",Recruitment Services,EC2N 3AQ
"Department for Business, Innovation and Skills",UK Shared Business Services Ltd,21/03/2022,Contract Staff,Corporate HR,Alexander Mann Solutions Ltd,99345321,"7,696.44",Recruitment Services,EC2N 3AQ
"Department for Business, Innovation and Skills",UK Shared Business Services Ltd,21/03/2022,Hardware/Software Maintenance,ISS Recoverable Charges � UKRI,Ogel IT Ltd,99345613,"1,464.98",Computer Consumables,SG1 2FS
"Department for Business, Innovation and Skills",UK Shared Business Services Ltd,21/03/2022,Staff Training,HRSD Recoverables,ASK Europe PLC,99345711,468.00,Training,MK43 0BT
"Department for Business, Innovation and Skills",UK Shared Business Services Ltd,21/03/2022,T&S - Parking Tolls Congestion Charges,Category and Continuous Improvement,Unspecified,99345775,10.00,"Parking, Tolls, Congestion Charge",HOME
"Department for Business, Innovation and Skills",UK Shared Business Services Ltd,21/03/2022,T&S - Public Transport,Category and Continuous Improvement,Unspecified,99345775,23.00,Public Transport - Train (Actuals),HOME
"Department for Business, Innovation and Skills",UK Shared Business Services Ltd,21/03/2022,T&S - Other Charges,Accounting,Unspecified,99345776,80.00,Miscellaneous (Actuals),HOME
"Department for Business, Innovation and Skills",UK Shared Business Services Ltd,21/03/2022,Staff Training,HRSD Recoverables,Provek Ltd,99346591,"1,620.00",Training,RG19 4LW
"Department for Business, Innovation and Skills",UK Shared Business Services Ltd,21/03/2022,Staff Training,HRSD Recoverables,Provek Ltd,99346592,"1,620.00",Training,RG19 4LW
"Department for Business, Innovation and Skills",UK Shared Business Services Ltd,21/03/2022,Staff Training,HRSD Recoverables,Feldman Ltd T/A Brian Feldman and Associates,99346613,"1,200.00",Training,SW15 5RH
"Department for Business, Innovation and Skills",UK Shared Business Services Ltd,21/03/2022,Staff Training,HRSD Recoverables,Feldman Ltd T/A Brian Feldman and Associates,99346619,720.00,Training,SW15 5RH
"Department for Business, Innovation and Skills",UK Shared Business Services Ltd,21/03/2022,Staff Training,HRSD Recoverables,Feldman Ltd T/A Brian Feldman and Associates,99346623,720.00,Training,SW15 5RH
"Department for Business, Innovation and Skills",UK Shared Business Services Ltd,22/03/2022,Recruitment Costs,Corporate HR,Everwell Occupational Health Ltd,99324901,42.00,Professional Services,CW11 3AE
"Department for Business, Innovation and Skills",UK Shared Business Services Ltd,22/03/2022,GPC Clearing - SSC,Balance Sheet,Unspecified,99341251,-199.00,Unspecified,HOME
"Department for Business, Innovation and Skills",UK Shared Business Services Ltd,22/03/2022,GPC Sundry Expenditure,HRSD Recoverables,Unspecified,99341251,199.00,GPC_Miscellaneous GPC Expenditure,HOME
"Department for Business, Innovation and Skills",UK Shared Business Services Ltd,22/03/2022,Hardware/Software Maintenance,Production Services,UKRI - Engineering & Physical Sciences Research Council,99343941,"59,779.28",Computing Services,INTERCO
"Department for Business, Innovation and Skills",UK Shared Business Services Ltd,22/03/2022,Computing Consumables,Production Services,UKRI - Engineering & Physical Sciences Research Council,99344159,"46,050.80",Computer Consumables,INTERCO
"Department for Business, Innovation and Skills",UK Shared Business Services Ltd,22/03/2022,Maintenance of Research & Scientific Equipment,SIAM,UKRI - Engineering & Physical Sciences Research Council,99345067,"1,979.49",Equipment Maintenance,INTERCO
"Department for Business, Innovation and Skills",UK Shared Business Services Ltd,22/03/2022,GPC Clearing - SSC,Balance Sheet,Unspecified,99345774,-33.42,Unspecified,HOME
"Department for Business, Innovation and Skills",UK Shared Business Services Ltd,22/03/2022,GPC Sundry Expenditure,D&I Management,Unspecified,99345774,33.42,GPC_Miscellaneous GPC Expenditure,HOME
"Department for Business, Innovation and Skills",UK Shared Business Services Ltd,22/03/2022,GPC Clearing - SSC,Balance Sheet,Unspecified,99345777,-838.00,Unspecified,HOME
"Department for Business, Innovation and Skills",UK Shared Business Services Ltd,22/03/2022,GPC Sundry Expenditure,HRSD Recoverables,Unspecified,99345777,838.00,GPC_Miscellaneous GPC Expenditure,HOME
"Department for Business, Innovation and Skills",UK Shared Business Services Ltd,22/03/2022,Printing & Stationery,Production Services,Konica Minolta Business Solutions (UK) Ltd,99346616,"-22,110.84",Audio Visuals,SS14 3AR
"Department for Business, Innovation and Skills",UK Shared Business Services Ltd,22/03/2022,Printing & Stationery,Production Services,Konica Minolta Business Solutions (UK) Ltd,99346616,0.11,"SR 11008494, Inv 1153207984 matched to PO 4080020628 LINE 1 (May - July 21) in error. DM DI to rematch to PO 4080020628 LINE 6 (Feb-Apr 20).",SS14 3AR
"Department for Business, Innovation and Skills",UK Shared Business Services Ltd,22/03/2022,Printing & Stationery,Production Services,Konica Minolta Business Solutions (UK) Ltd,99346621,"22,110.73",Audio Visuals,SS14 3AR
"Department for Business, Innovation and Skills",UK Shared Business Services Ltd,22/03/2022,UK - Professional Memberships & Subscriptions,Communications,Unspecified,99347991,244.00,Professional Subscriptions (Actuals),HOME
"Department for Business, Innovation and Skills",UK Shared Business Services Ltd,22/03/2022,GPC Clearing - SSC,Balance Sheet,Unspecified,99347992,-419.00,Unspecified,HOME
"Department for Business, Innovation and Skills",UK Shared Business Services Ltd,22/03/2022,GPC Sundry Expenditure,HRSD Recoverables,Unspecified,99347992,419.00,GPC_Miscellaneous GPC Expenditure,HOME
"Department for Business, Innovation and Skills",UK Shared Business Services Ltd,22/03/2022,T&S - Parking Tolls Congestion Charges,Tier 1 ROE Transactions,Unspecified,99347993,15.00,"Parking, Tolls, Congestion Charge",HOME
"Department for Business, Innovation and Skills",UK Shared Business Services Ltd,22/03/2022,T&S - Subsistence,Tier 1 ROE Transactions,Unspecified,99347993,47.54,Evening Meal (Actuals),HOME
"Department for Business, Innovation and Skills",UK Shared Business Services Ltd,22/03/2022,T&S - Subsistence,Tier 1 ROE Transactions,Unspecified,99347993,23.76,Lunch (Actuals),HOME
"Department for Business, Innovation and Skills",UK Shared Business Services Ltd,22/03/2022,T&S - Vehicle Hire,Tier 1 ROE Transactions,Unspecified,99347993,95.82,Vehicle Hire/Rental/Fuel (Actuals),HOME
"Department for Business, Innovation and Skills",UK Shared Business Services Ltd,22/03/2022,T&S - Other Charges,Tier 1 ROE Transactions,Unspecified,99347994,50.00,Miscellaneous (Actuals),HOME
"Department for Business, Innovation and Skills",UK Shared Business Services Ltd,22/03/2022,T&S - Subsistence,Tier 1 ROE Transactions,Unspecified,99347995,50.29,Evening Meal (Actuals),HOME
"Department for Business, Innovation and Skills",UK Shared Business Services Ltd,22/03/2022,T&S - Subsistence,Tier 1 ROE Transactions,Unspecified,99347995,26.71,Lunch (Actuals),HOME
"Department for Business, Innovation and Skills",UK Shared Business Services Ltd,22/03/2022,T&S - Other Charges,Facilities,Unspecified,99347996,109.14,Miscellaneous (Actuals),HOME
"Department for Business, Innovation and Skills",UK Shared Business Services Ltd,22/03/2022,UK - Professional Memberships & Subscriptions,Communications,Unspecified,99347997,244.00,Professional Subscriptions (Actuals),HOME
"Department for Business, Innovation and Skills",UK Shared Business Services Ltd,23/03/2022,Computing Consumables,Production Services,Probrand Ltd,99270447,"2,730.00",Computer Consumables,SMARTFORM
"Department for Business, Innovation and Skills",UK Shared Business Services Ltd,23/03/2022,IT Cloud Services,Production Services,Jisc Services Ltd,99323059,"2,352.00",Professional Cloud Services,OX11 0SG
"Department for Business, Innovation and Skills",UK Shared Business Services Ltd,23/03/2022,IT Cloud Services,Production Services,Jisc Services Ltd,99323072,"3,432.00",Professional Cloud Services,OX11 0SG
"Department for Business, Innovation and Skills",UK Shared Business Services Ltd,23/03/2022,IT Cloud Services,Production Services,Jisc Services Ltd,99325043,431.14,Enhanced Anti-Malware,OX11 0SG
"Department for Business, Innovation and Skills",UK Shared Business Services Ltd,23/03/2022,IT Cloud Services,Production Services,Jisc Services Ltd,99325043,204.00,Enhanced Back-Up,OX11 0SG
"Department for Business, Innovation and Skills",UK Shared Business Services Ltd,23/03/2022,IT Cloud Services,Production Services,Jisc Services Ltd,99325043,"10,820.70",Managed AWS Consumption,OX11 0SG
"Department for Business, Innovation and Skills",UK Shared Business Services Ltd,23/03/2022,IT Cloud Services,Production Services,Jisc Services Ltd,99325043,"5,286.00",Reserved Instances,OX11 0SG
"Department for Business, Innovation and Skills",UK Shared Business Services Ltd,23/03/2022,IT Cloud Services,Production Services,Jisc Services Ltd,99331654,"2,575.70",Managed AWS Consumption,OX11 0SG
"Department for Business, Innovation and Skills",UK Shared Business Services Ltd,23/03/2022,IT Cloud Services,Production Services,Jisc Services Ltd,99331654,90.14,Professional Cloud Services,OX11 0SG
"Department for Business, Innovation and Skills",UK Shared Business Services Ltd,23/03/2022,Contract Staff,Production Services,Alexander Mann Solutions Ltd,99332610,"1,231.85",Recruitment Services,EC2N 3AQ
"Department for Business, Innovation and Skills",UK Shared Business Services Ltd,23/03/2022,Contract Staff,Production Services,Alexander Mann Solutions Ltd,99332610,615.92,Recruitment Services,EC2N 3AQ
"Department for Business, Innovation and Skills",UK Shared Business Services Ltd,23/03/2022,Contract Staff,Production Services,Alexander Mann Solutions Ltd,99332616,"2,463.70",Recruitment Services,EC2N 3AQ
"Department for Business, Innovation and Skills",UK Shared Business Services Ltd,23/03/2022,Contract Staff,Production Services,Alexander Mann Solutions Ltd,99340493,615.92,Recruitment Services,EC2N 3AQ
"Department for Business, Innovation and Skills",UK Shared Business Services Ltd,23/03/2022,Computing Consumables,Production Services,Probrand Ltd,99344387,"1,039.20",Computer Consumables,SMARTFORM
"Department for Business, Innovation and Skills",UK Shared Business Services Ltd,23/03/2022,T&S - Vehicle Hire,Service Improvement and Assurance,Enterprise Rent-A-Car UK Ltd,99347148,16.62,SR 11017222 CAR HIRE,GL2 5DA
"Department for Business, Innovation and Skills",UK Shared Business Services Ltd,23/03/2022,T&S - Vehicle Hire,Service Improvement and Assurance,Enterprise Rent-A-Car UK Ltd,99347148,83.09,,GL2 5DA
"Department for Business, Innovation and Skills",UK Shared Business Services Ltd,23/03/2022,Legal & Professional Services,Communications,Panlogic Ltd,99347292,"1,119.60",Professional Services,TW9 2RG
"Department for Business, Innovation and Skills",UK Shared Business Services Ltd,23/03/2022,Staff Training,HRSD Recoverables,ASK Europe PLC,99347320,468.00,Training,MK43 0BT
"Department for Business, Innovation and Skills",UK Shared Business Services Ltd,23/03/2022,Staff Training,HRSD Recoverables,ASK Europe PLC,99347322,468.00,Training,MK43 0BT
"Department for Business, Innovation and Skills",UK Shared Business Services Ltd,23/03/2022,Staff Training,HRSD Recoverables,ASK Europe PLC,99347324,780.00,Training,MK43 0BT
"Department for Business, Innovation and Skills",UK Shared Business Services Ltd,23/03/2022,Staff Training,HRSD Recoverables,ASK Europe PLC,99348480,780.00,Training,MK43 0BT
"Department for Business, Innovation and Skills",UK Shared Business Services Ltd,23/03/2022,Staff Training,HRSD Recoverables,ASK Europe PLC,99348481,780.00,Training,MK43 0BT
"Department for Business, Innovation and Skills",UK Shared Business Services Ltd,23/03/2022,Staff Training,HRSD Recoverables,ASK Europe PLC,99348482,780.00,Training,MK43 0BT
"Department for Business, Innovation and Skills",UK Shared Business Services Ltd,23/03/2022,Staff Training,HRSD Recoverables,ASK Europe PLC,99348487,468.00,Training,MK43 0BT
"Department for Business, Innovation and Skills",UK Shared Business Services Ltd,23/03/2022,Staff Training,HRSD Recoverables,ASK Europe PLC,99348488,780.00,Training,MK43 0BT
"Department for Business, Innovation and Skills",UK Shared Business Services Ltd,23/03/2022,T&S - Other Charges,Finance Operations 1,Unspecified,99348561,19.54,Home-working Equipment,HOME
"Department for Business, Innovation and Skills",UK Shared Business Services Ltd,23/03/2022,T&S - Subsistence,Tier 1 ROE Transactions,Unspecified,99348562,56.54,Evening Meal (Actuals),HOME
"Department for Business, Innovation and Skills",UK Shared Business Services Ltd,23/03/2022,T&S - Subsistence,Tier 1 ROE Transactions,Unspecified,99348562,25.16,Lunch (Actuals),HOME
"Department for Business, Innovation and Skills",UK Shared Business Services Ltd,24/03/2022,Computer Software Licences,Production Services,Softcat plc,99334386,"3,517.20",Computing Software,SL7 1LW
"Department for Business, Innovation and Skills",UK Shared Business Services Ltd,24/03/2022,IT / Computing Support Services,Process Automation,Premiertec Consulting Ltd t/a Claremont,99336441,"16,351.88",Computer Consumables,NE1 3DY
"Department for Business, Innovation and Skills",UK Shared Business Services Ltd,24/03/2022,Computer Software Licences,SIAM,Phoenix Software Ltd,99347533,255.60,Computing Software,YO42 1NS
"Department for Business, Innovation and Skills",UK Shared Business Services Ltd,24/03/2022,Staff Training,HRSD Recoverables,ASK Europe PLC,99347607,468.00,Training,MK43 0BT
"Department for Business, Innovation and Skills",UK Shared Business Services Ltd,24/03/2022,Staff Training,HRSD Recoverables,ASK Europe PLC,99347609,468.00,Training,MK43 0BT
"Department for Business, Innovation and Skills",UK Shared Business Services Ltd,24/03/2022,Staff Training,HRSD Recoverables,ASK Europe PLC,99347611,780.00,Training,MK43 0BT
"Department for Business, Innovation and Skills",UK Shared Business Services Ltd,24/03/2022,Consultancy Services,Production Services,Clearvision (CM) 2005 Ltd,99348823,"4,320.00",Computer Consumables,SO32 2AH
"Department for Business, Innovation and Skills",UK Shared Business Services Ltd,24/03/2022,Consultancy Services,Production Services,Clearvision (CM) 2005 Ltd,99348823,"3,240.00",Computer Consumables,SO32 2AH
"Department for Business, Innovation and Skills",UK Shared Business Services Ltd,24/03/2022,T&S - Other Charges,Core Services,Unspecified,99349794,80.00,Miscellaneous (Actuals),HOME
"Department for Business, Innovation and Skills",UK Shared Business Services Ltd,24/03/2022,T&S - Other Charges,Facilities,Unspecified,99349795,29.99,Home-working Equipment,HOME
"Department for Business, Innovation and Skills",UK Shared Business Services Ltd,24/03/2022,UK - Professional Memberships & Subscriptions,Communications,Unspecified,99349796,244.00,Professional Subscriptions (Actuals),HOME
"Department for Business, Innovation and Skills",UK Shared Business Services Ltd,25/03/2022,Computer Software Licences,Production Services,Phoenix Software Ltd,99342932,"7,678.84",Computer Consumables,YO42 1NS
"Department for Business, Innovation and Skills",UK Shared Business Services Ltd,25/03/2022,Staff Training,HRSD Recoverables,ASK Europe PLC,99347316,156.00,Training,MK43 0BT
"Department for Business, Innovation and Skills",UK Shared Business Services Ltd,25/03/2022,Staff Training,HRSD Recoverables,ASK Europe PLC,99347316,780.00,Training,MK43 0BT
"Department for Business, Innovation and Skills",UK Shared Business Services Ltd,25/03/2022,Staff Training,HRSD Recoverables,ASK Europe PLC,99348479,156.00,Training,MK43 0BT
"Department for Business, Innovation and Skills",UK Shared Business Services Ltd,25/03/2022,Staff Training,HRSD Recoverables,ASK Europe PLC,99348479,780.00,Training,MK43 0BT
"Department for Business, Innovation and Skills",UK Shared Business Services Ltd,25/03/2022,Staff Training,HRSD Recoverables,ASK Europe PLC,99350243,936.00,Training,MK43 0BT
"Department for Business, Innovation and Skills",UK Shared Business Services Ltd,25/03/2022,Staff Training,HRSD Recoverables,ASK Europe PLC,99350245,780.00,Training,MK43 0BT
"Department for Business, Innovation and Skills",UK Shared Business Services Ltd,25/03/2022,Staff Training,HRSD Recoverables,ASK Europe PLC,99350247,780.00,Training,MK43 0BT
"Department for Business, Innovation and Skills",UK Shared Business Services Ltd,25/03/2022,Staff Training,HRSD Recoverables,ASK Europe PLC,99350248,780.00,Training,MK43 0BT
"Department for Business, Innovation and Skills",UK Shared Business Services Ltd,25/03/2022,Staff Training,HRSD Recoverables,ASK Europe PLC,99350250,780.00,Training,MK43 0BT
"Department for Business, Innovation and Skills",UK Shared Business Services Ltd,25/03/2022,Computing Consumables,Production Services,Torchwood Technologies Ltd,99350283,"8,502.36",Computer Consumables,CF72 8GP
"Department for Business, Innovation and Skills",UK Shared Business Services Ltd,25/03/2022,Computing Consumables,Production Services,Torchwood Technologies Ltd,99350284,"3,360.00",Computer Consumables,CF72 8GP
"Department for Business, Innovation and Skills",UK Shared Business Services Ltd,28/03/2022,Computer Software Licences,Production Services,Oracle Corporation UK Ltd,99350756,"94,405.49",Computing Software,RG6 1RA
"Department for Business, Innovation and Skills",UK Shared Business Services Ltd,28/03/2022,Other Staff Benefits,Corporate HR,Amazon EU SARL,99351859,325.00,ZZ-Employee Benefits,EC2A 2FA
"Department for Business, Innovation and Skills",UK Shared Business Services Ltd,28/03/2022,Staff Training,HRSD Recoverables,Feldman Ltd T/A Brian Feldman and Associates,99354784,720.00,Training,SW15 5RH
"Department for Business, Innovation and Skills",UK Shared Business Services Ltd,28/03/2022,Staff Training,HRSD Recoverables,Feldman Ltd T/A Brian Feldman and Associates,99354787,"1,200.00",Training,SW15 5RH
"Department for Business, Innovation and Skills",UK Shared Business Services Ltd,28/03/2022,Staff Training,HRSD Recoverables,Feldman Ltd T/A Brian Feldman and Associates,99354789,720.00,Training,SW15 5RH
"Department for Business, Innovation and Skills",UK Shared Business Services Ltd,28/03/2022,Staff Training,HRSD Recoverables,Feldman Ltd T/A Brian Feldman and Associates,99354792,720.00,Training,SW15 5RH
"Department for Business, Innovation and Skills",UK Shared Business Services Ltd,28/03/2022,Staff Training,HRSD Recoverables,Feldman Ltd T/A Brian Feldman and Associates,99354800,720.00,Training,SW15 5RH
"Department for Business, Innovation and Skills",UK Shared Business Services Ltd,28/03/2022,Staff Training,HRSD Recoverables,Feldman Ltd T/A Brian Feldman and Associates,99354804,720.00,Training,SW15 5RH
"Department for Business, Innovation and Skills",UK Shared Business Services Ltd,28/03/2022,Computing Consumables,D&I Management,Unspecified,99358774,160.74,GPC_Computer Consumables,HOME
"Department for Business, Innovation and Skills",UK Shared Business Services Ltd,28/03/2022,GPC Clearing - SSC,Balance Sheet,Unspecified,99358774,-160.74,Unspecified,HOME
"Department for Business, Innovation and Skills",UK Shared Business Services Ltd,28/03/2022,Computing Consumables,D&I Management,Unspecified,99358775,48.66,GPC_Computer Consumables,HOME
"Department for Business, Innovation and Skills",UK Shared Business Services Ltd,28/03/2022,GPC Clearing - SSC,Balance Sheet,Unspecified,99358775,-48.66,Unspecified,HOME
"Department for Business, Innovation and Skills",UK Shared Business Services Ltd,28/03/2022,Computing Consumables,D&I Management,Unspecified,99358776,59.76,GPC_Computer Consumables,HOME
"Department for Business, Innovation and Skills",UK Shared Business Services Ltd,28/03/2022,GPC Clearing - SSC,Balance Sheet,Unspecified,99358776,-59.76,Unspecified,HOME
"Department for Business, Innovation and Skills",UK Shared Business Services Ltd,28/03/2022,Computing Consumables,D&I Management,Unspecified,99358777,86.66,GPC_Computer Consumables,HOME
"Department for Business, Innovation and Skills",UK Shared Business Services Ltd,28/03/2022,GPC Clearing - SSC,Balance Sheet,Unspecified,99358777,-86.66,Unspecified,HOME
"Department for Business, Innovation and Skills",UK Shared Business Services Ltd,29/03/2022,Hardware/Software Maintenance,Production Services,UKRI - Engineering & Physical Sciences Research Council,98857210,"82,991.06",Computer Consumables,INTERCO
"Department for Business, Innovation and Skills",UK Shared Business Services Ltd,29/03/2022,Recruitment Costs,Corporate HR,Agenda Resource Management Ltd,99342646,395.76,Professional Services,HU12 8YJ
"Department for Business, Innovation and Skills",UK Shared Business Services Ltd,29/03/2022,Recruitment Costs,Corporate HR,Agenda Resource Management Ltd,99342654,153.91,Professional Services,HU12 8YJ
"Department for Business, Innovation and Skills",UK Shared Business Services Ltd,29/03/2022,Recruitment Costs,Corporate HR,Agenda Resource Management Ltd,99343995,56.11,Professional Services,HU12 8YJ
"Department for Business, Innovation and Skills",UK Shared Business Services Ltd,29/03/2022,Computer Software Licences,Production Services,UKRI - Engineering & Physical Sciences Research Council,99348341,"12,752.04",Computing Software,INTERCO
"Department for Business, Innovation and Skills",UK Shared Business Services Ltd,29/03/2022,Computer Software Licences,Production Services,UKRI - Engineering & Physical Sciences Research Council,99348341,"40,993.25",Computing Software,INTERCO
"Department for Business, Innovation and Skills",UK Shared Business Services Ltd,29/03/2022,Computer Software Licences,Production Services,UKRI - Engineering & Physical Sciences Research Council,99348341,"106,313.71",Computing Software,INTERCO
"Department for Business, Innovation and Skills",UK Shared Business Services Ltd,29/03/2022,Computer Software Licences,Production Services,UKRI - Engineering & Physical Sciences Research Council,99348341,"4,827.67",Computing Software,INTERCO
"Department for Business, Innovation and Skills",UK Shared Business Services Ltd,29/03/2022,Recruitment Costs,Corporate HR,Agenda Resource Management Ltd,99349910,153.91,Professional Services,HU12 8YJ
"Department for Business, Innovation and Skills",UK Shared Business Services Ltd,29/03/2022,Hardware/Software Maintenance,SIAM,Park Place Technologies Ltd,99358780,"4,197.74",Computing Services,SE10 0ER
"Department for Business, Innovation and Skills",UK Shared Business Services Ltd,29/03/2022,Computer Software Licences,Production Services,Oracle Corporation UK Ltd,99358944,"95,497.18",Computing Software,BH7 7DA
"Department for Business, Innovation and Skills",UK Shared Business Services Ltd,29/03/2022,Contract Staff,Corporate HR,Alexander Mann Solutions Ltd,99358996,"7,961.76",Recruitment Services,EC2N 3AQ
"Department for Business, Innovation and Skills",UK Shared Business Services Ltd,29/03/2022,Contract Staff,Corporate HR,Alexander Mann Solutions Ltd,99359000,"3,848.22",Recruitment Services,EC2N 3AQ
"Department for Business, Innovation and Skills",UK Shared Business Services Ltd,29/03/2022,Contract Staff,Production Services,Alexander Mann Solutions Ltd,99359020,"5,297.04",Recruitment Services,EC2N 3AQ
"Department for Business, Innovation and Skills",UK Shared Business Services Ltd,29/03/2022,Contract Staff,Production Services,Alexander Mann Solutions Ltd,99359043,"3,018.06",Recruitment Services,EC2N 3AQ
"Department for Business, Innovation and Skills",UK Shared Business Services Ltd,29/03/2022,Computer Hardware,DR Upgrade,AXIANS NETWORKS LTD,99359742,"2,332.30",Computer Consumables,RG22 4BS
"Department for Business, Innovation and Skills",UK Shared Business Services Ltd,29/03/2022,Computer Hardware,DR Upgrade,AXIANS NETWORKS LTD,99359742,"1,160.96",Computer Consumables,RG22 4BS
"Department for Business, Innovation and Skills",UK Shared Business Services Ltd,29/03/2022,Computer Hardware,DR Upgrade,AXIANS NETWORKS LTD,99359742,"22,285.44",Computer Consumables,RG22 4BS
"Department for Business, Innovation and Skills",UK Shared Business Services Ltd,29/03/2022,Computer Hardware,DR Upgrade,AXIANS NETWORKS LTD,99359742,"26,743.65",Computer Consumables,RG22 4BS
"Department for Business, Innovation and Skills",UK Shared Business Services Ltd,29/03/2022,Computer Hardware,DR Upgrade,AXIANS NETWORKS LTD,99359742,"2,451.40",Computer Consumables,RG22 4BS
"Department for Business, Innovation and Skills",UK Shared Business Services Ltd,29/03/2022,Staff Training,HRSD Recoverables,Provek Ltd,99359901,"1,620.00",Training,RG19 4LW
"Department for Business, Innovation and Skills",UK Shared Business Services Ltd,29/03/2022,Staff Training,HRSD Recoverables,Provek Ltd,99359905,"1,620.00",Training,RG19 4LW
"Department for Business, Innovation and Skills",UK Shared Business Services Ltd,29/03/2022,Contract Staff,Project Office,Alexander Mann Solutions Ltd,99360712,"3,649.14",Recruitment Services,EC2N 3AQ
"Department for Business, Innovation and Skills",UK Shared Business Services Ltd,29/03/2022,Rates,Facilities,Intellectual Property Office,99361731,"216,075.69",ZZ-Rent & Rates,NP10 8QQ
"Department for Business, Innovation and Skills",UK Shared Business Services Ltd,29/03/2022,Computer Software,Production Services,Softcat plc,99362754,"1,650.12",Computing Software,SL7 1LW
"Department for Business, Innovation and Skills",UK Shared Business Services Ltd,29/03/2022,IT / Computing Support Services,Production Services,Softcat plc,99362868,"29,987.36",Computer Consumables,SL7 1LW
"Department for Business, Innovation and Skills",UK Shared Business Services Ltd,29/03/2022,T&S - Subsistence,Executive Function,Unspecified,99363737,110.00,Lunch (Actuals),HOME
"Department for Business, Innovation and Skills",UK Shared Business Services Ltd,29/03/2022,Health & Safety (inc. Medicals & Opticians),D&I Operations,Unspecified,99363738,55.00,Medical Fees & Vaccinations (Actuals),HOME
"Department for Business, Innovation and Skills",UK Shared Business Services Ltd,30/03/2022,Computer Software Licences,Production Services,Quest Software International Ltd,99320609,896.50,Computing Software,T12 HD21 - GBP
"Department for Business, Innovation and Skills",UK Shared Business Services Ltd,30/03/2022,Computer Software Licences,Production Services,Quest Software International Ltd,99320609,885.50,Computing Software,T12 HD21 - GBP
"Department for Business, Innovation and Skills",UK Shared Business Services Ltd,30/03/2022,Computer Hardware,D&I Operations,Premier Farnell UK Ltd T/A Farnell Onecall,99348340,153.66,Audio Visuals,SWAREHOUSEONLY
"Department for Business, Innovation and Skills",UK Shared Business Services Ltd,30/03/2022,Computer Hardware,D&I Operations,Premier Farnell UK Ltd T/A Farnell Onecall,99348340,63.34,Audio Visuals,SWAREHOUSEONLY
"Department for Business, Innovation and Skills",UK Shared Business Services Ltd,30/03/2022,Purchase of non capital equipment,D&I Operations,Premier Farnell UK Ltd T/A Farnell Onecall,99348340,777.00,Specialist Engineering,SWAREHOUSEONLY
"Department for Business, Innovation and Skills",UK Shared Business Services Ltd,30/03/2022,Computer Software Licences,Production Services,GitHub Inc,99348700,"5,581.02",Computer Consumables,94107 - USD
"Department for Business, Innovation and Skills",UK Shared Business Services Ltd,30/03/2022,IT Cloud Services,Production Services,Jisc Services Ltd,99363202,447.02,Enhanced Anti-Malware,OX11 0SG
"Department for Business, Innovation and Skills",UK Shared Business Services Ltd,30/03/2022,IT Cloud Services,Production Services,Jisc Services Ltd,99363202,216.00,Enhanced Back-Up,OX11 0SG
"Department for Business, Innovation and Skills",UK Shared Business Services Ltd,30/03/2022,IT Cloud Services,Production Services,Jisc Services Ltd,99363202,"77,563.14",Managed AWS Consumption,OX11 0SG
"Department for Business, Innovation and Skills",UK Shared Business Services Ltd,30/03/2022,IT Cloud Services,Production Services,Jisc Services Ltd,99363202,"3,186.00",Managed Database Core,OX11 0SG
"Department for Business, Innovation and Skills",UK Shared Business Services Ltd,30/03/2022,IT Cloud Services,Production Services,Jisc Services Ltd,99363202,"29,856.30",Reserved Instances,OX11 0SG
"Department for Business, Innovation and Skills",UK Shared Business Services Ltd,30/03/2022,T&S - Mileage,Procurement Policy & Strategy,Unspecified,99371765,56.70,Mileage - Car (excl Home to Office),HOME
"Department for Business, Innovation and Skills",UK Shared Business Services Ltd,30/03/2022,Conferences & Seminars,"Risk, Information & Security Compliance",Unspecified,99371766,560.95,Conference/Course Fees (Actuals),HOME
"Department for Business, Innovation and Skills",UK Shared Business Services Ltd,31/03/2022,Printing & Stationery,Production Services,Konica Minolta Business Solutions (UK) Ltd,99076031,"44,221.68",Audio Visuals,SS14 3AR
"Department for Business, Innovation and Skills",UK Shared Business Services Ltd,31/03/2022,Printing & Stationery,Production Services,Konica Minolta Business Solutions (UK) Ltd,99076031,"44,221.68",Audio Visuals,SS14 3AR
"Department for Business, Innovation and Skills",UK Shared Business Services Ltd,31/03/2022,Printing & Stationery,Production Services,Konica Minolta Business Solutions (UK) Ltd,99076031,"3,842.87",Audio Visuals,SS14 3AR
"Department for Business, Innovation and Skills",UK Shared Business Services Ltd,31/03/2022,Education Fees & Study Materials,Project Office,Unspecified,99275071,33.00,Educational Materials - Study Books,HOME
"Department for Business, Innovation and Skills",UK Shared Business Services Ltd,31/03/2022,Printing & Stationery,Production Services,Konica Minolta Business Solutions (UK) Ltd,99327729,"22,874.00",Computing Hardware,SS14 3AR
"Department for Business, Innovation and Skills",UK Shared Business Services Ltd,31/03/2022,Printing & Stationery,Production Services,Konica Minolta Business Solutions (UK) Ltd,99330604,"1,318.07",Computing Hardware,SS14 3AR
"Department for Business, Innovation and Skills",UK Shared Business Services Ltd,31/03/2022,Printing & Stationery,Production Services,Konica Minolta Business Solutions (UK) Ltd,99346596,"2,501.60",Computing Hardware,SS14 3AR
"Department for Business, Innovation and Skills",UK Shared Business Services Ltd,31/03/2022,Printing & Stationery,Production Services,Konica Minolta Business Solutions (UK) Ltd,99349100,"-22,110.73",Audio Visuals,SS14 3AR
"Department for Business, Innovation and Skills",UK Shared Business Services Ltd,31/03/2022,Printing & Stationery,Production Services,Konica Minolta Business Solutions (UK) Ltd,99349100,"-22,110.84",Audio Visuals,SS14 3AR
"Department for Business, Innovation and Skills",UK Shared Business Services Ltd,31/03/2022,Printing & Stationery,Production Services,Konica Minolta Business Solutions (UK) Ltd,99349100,"-9,008.03",Audio Visuals,SS14 3AR
"Department for Business, Innovation and Skills",UK Shared Business Services Ltd,31/03/2022,Printing & Stationery,Production Services,Konica Minolta Business Solutions (UK) Ltd,99349100,"-22,110.84",Audio Visuals,SS14 3AR
"Department for Business, Innovation and Skills",UK Shared Business Services Ltd,31/03/2022,Printing & Stationery,Production Services,Konica Minolta Business Solutions (UK) Ltd,99349100,"-22,110.84",Audio Visuals,SS14 3AR
"Department for Business, Innovation and Skills",UK Shared Business Services Ltd,31/03/2022,Printing & Stationery,Production Services,Konica Minolta Business Solutions (UK) Ltd,99350173,912.00,Computer Consumables,SS14 3AR
"Department for Business, Innovation and Skills",UK Shared Business Services Ltd,31/03/2022,T&S - Other Charges,Facilities,Unspecified,99358778,165.00,Miscellaneous (Actuals),HOME
"Department for Business, Innovation and Skills",UK Shared Business Services Ltd,31/03/2022,Recruitment Costs,Production Services,Alexander Mann Solutions Ltd,99359007,"4,927.44",Recruitment Services,EC2N 3AQ
"Department for Business, Innovation and Skills",UK Shared Business Services Ltd,31/03/2022,Recruitment Costs,Corporate HR,Agenda Resource Management Ltd,99371727,153.91,Professional Services,HU12 8YJ
"Department for Business, Innovation and Skills",UK Shared Business Services Ltd,31/03/2022,Purchase of non capital equipment,Finance Services,Graham Popple T/A G P Removals,99372063,150.00,Removal of rubbish for disposal,TS19 0XX
"Department for Business, Innovation and Skills",UK Shared Business Services Ltd,31/03/2022,Computer Hardware,DR Upgrade,AXIANS NETWORKS LTD,99374723,"7,455.86",Computer Consumables,RG22 4BS
"Department for Business, Innovation and Skills",UK Shared Business Services Ltd,31/03/2022,Computer Hardware,DR Upgrade,AXIANS NETWORKS LTD,99374723,"14,185.71",Computer Consumables,RG22 4BS
"Department for Business, Innovation and Skills",UK Shared Business Services Ltd,31/03/2022,Computer Hardware,DR Upgrade,AXIANS NETWORKS LTD,99374723,650.78,Computer Consumables,RG22 4BS
"Department for Business, Innovation and Skills",UK Shared Business Services Ltd,31/03/2022,Computer Hardware,DR Upgrade,AXIANS NETWORKS LTD,99374723,"1,862.09",Computer Consumables,RG22 4BS
"Department for Business, Innovation and Skills",UK Shared Business Services Ltd,31/03/2022,Computer Hardware,DR Upgrade,AXIANS NETWORKS LTD,99374723,720.00,Computer Consumables,RG22 4BS
"Department for Business, Innovation and Skills",UK Shared Business Services Ltd,31/03/2022,Printing & Stationery,Production Services,Konica Minolta Business Solutions (UK) Ltd,99374751,"-22,874.00",Computing Hardware,SS14 3AR
"Department for Business, Innovation and Skills",UK Shared Business Services Ltd,31/03/2022,Printing & Stationery,Production Services,Konica Minolta Business Solutions (UK) Ltd,99374758,"-1,318.07",Computing Hardware,SS14 3AR
"Department for Business, Innovation and Skills",UK Shared Business Services Ltd,31/03/2022,Printing & Stationery,Production Services,Konica Minolta Business Solutions (UK) Ltd,99374764,"-2,501.60",Computing Hardware,SS14 3AR
"Department for Business, Innovation and Skills",UK Shared Business Services Ltd,31/03/2022,Printing & Stationery,Production Services,Konica Minolta Business Solutions (UK) Ltd,99374767,"-22,874.00",Computing Hardware,SS14 3AR
"Department for Business, Innovation and Skills",UK Shared Business Services Ltd,31/03/2022,Printing & Stationery,Production Services,Konica Minolta Business Solutions (UK) Ltd,99374770,"22,874.00",Computing Hardware,SS14 3AR
"Department for Business, Innovation and Skills",UK Shared Business Services Ltd,31/03/2022,Printing & Stationery,Production Services,Konica Minolta Business Solutions (UK) Ltd,99374772,"22,874.00",Computing Hardware,SS14 3AR
"Department for Business, Innovation and Skills",UK Shared Business Services Ltd,31/03/2022,Printing & Stationery,Production Services,Konica Minolta Business Solutions (UK) Ltd,99374774,"22,874.00",Computing Hardware,SS14 3AR
"Department for Business, Innovation and Skills",UK Shared Business Services Ltd,31/03/2022,Printing & Stationery,Production Services,Konica Minolta Business Solutions (UK) Ltd,99374789,"22,874.00",Computing Hardware,SS14 3AR
"Department for Business, Innovation and Skills",UK Shared Business Services Ltd,31/03/2022,Printing & Stationery,Production Services,Konica Minolta Business Solutions (UK) Ltd,99374854,161.18,Computing Hardware,SS14 3AR
"Department for Business, Innovation and Skills",UK Shared Business Services Ltd,31/03/2022,Printing & Stationery,Production Services,Konica Minolta Business Solutions (UK) Ltd,99374855,"2,885.74",Computing Hardware,SS14 3AR
"Department for Business, Innovation and Skills",UK Shared Business Services Ltd,31/03/2022,Printing & Stationery,Production Services,Konica Minolta Business Solutions (UK) Ltd,99374856,940.24,Computing Hardware,SS14 3AR
"Department for Business, Innovation and Skills",UK Shared Business Services Ltd,04/03/2022,Bank Charges,Corporate Finance,,,972.50,Bank Charges,
"Department for Business, Innovation and Skills",UK Shared Business Services Ltd,04/03/2022,Bank Charges,Corporate Finance,,,"1,115.62",Bank Charges,
"Department for Business, Innovation and Skills",UK Shared Business Services Ltd,14/03/2022,Bank Charges,Corporate Finance,,,205.55,Bank Charges,
"Department for Business, Innovation and Skills",UK Shared Business Services Ltd,14/03/2022,Bank Charges,Corporate Finance,,,110.45,Bank Charges,
"Department for Business, Innovation and Skills",UK Shared Business Services Ltd,21/03/2022,Bank Charges,Corporate Finance,,,62.27,Bank Charges,
"Department for Business, Innovation and Skills",UK Shared Business Services Ltd,21/03/2022,Bank Charges,Corporate Finance,,,153.84,Bank Charges,
"Department for Business, Innovation and Skills",UK Shared Business Services Ltd,28/03/2022,Bank Charges,Corporate Finance,,,961.00,Bank Charges,
"Department for Business, Innovation and Skills",UK Shared Business Services Ltd,04/03/2022,Bank Charges,Corporate Finance,,,25.06,Bank Charges,
"Department for Business, Innovation and Skills",UK Shared Business Services Ltd,31/03/2022,Bank Charges,Corporate Finance,,,25.01,Bank Charges,
